Cogmind - Beta 9.1 @@@ ROGUE MODE // 2019.10.31 @ 17:50:29 // Halloween2019/Abominations Player: alice_fexa Result: Core destroyed Performance ------------- Evolutions (0) 0 Regions Visited (1) 200 Robots Destroyed (6) 30 Value Destroyed (230) 230 Prototype IDs (0) 0 Alien Tech Used (0) 0 Bonus (0) 0 TOTAL SCORE: 460 Bonus ------- None Cogmind --------- Core Integrity 0/250 Matter 292/300 Energy 10/100 System Corruption 0% Temperature Cool (600) Location -10/Materials Parts ------- Power (1) Propulsion (2) Improved Treads Improved Treads Utility (2) Small Storage Unit Improved Signal Interpreter Weapon (2) Beam Cannon Inventory (6) Light Treads Improved Heat Sink Mini Grenade Launcher Mini Grenade Launcher Mini Grenade Launcher Peak State ------------ Power Light Ion Engine Propulsion Improved Treads Improved Treads Utility Small Storage Unit High-powered Tractor Beam Weapon Medium Laser Light Assault Rifle Inventory Light Ion Engine Medium Laser Mini Grenade Launcher Mini Grenade Launcher Mini Grenade Launcher Mini Grenade Launcher [Rating: 11] Favorites ----------- Power Light Ion Engine Engine Light Ion Engine Propulsion Improved Treads Treads Improved Treads Wheel Wheel Utility Small Storage Unit Device High-powered Tractor Beam Storage Small Storage Unit Processor Improved Signal Interpreter Weapon Light Assault Rifle Energy Gun Medium Laser Energy Cannon Beam Cannon Ballistic Gun Light Assault Rifle Build | -11 -10 ------- Run | Scr Mat Slots Evolved . | . . Power . | . . Propulsion . | . . Utility . | . . Weapon . | . . Parts Attached 22 | 7 15 Power 3 | 1 2 Engine 3 | 1 2 Core . | . . Reactor . | . . Propulsion 8 | 3 5 Treads 7 | 2 5 Leg . | . . Wheel 1 | 1 . Hover . | . . Flight . | . . Utility 3 | 1 2 Device 1 | . 1 Storage 1 | 1 . Processor 1 | . 1 Hackware . | . . Protection . | . . Artifact . | . . Weapon 8 | 2 6 Energy Gun 2 | 2 . Energy Cannon 3 | . 3 Ballistic Gun 3 | . 3 Ballistic Cannon . | . . Launcher . | . . Special Weapon . | . . Impact Weapon . | . . Slashing Weapon . | . . Piercing Weapon . | . . Special Melee Weapon . | . . Unidentified Prototypes . | . . Parts Lost 5 | . 5 Power 2 | . 2 Propulsion 1 | . 1 Utility . | . . Weapon 2 | . 2 Highest Loss Streak 2 | . 2 Average Slot Usage (%) 98 | . 98 Engine 13 | . 13 Treads 27 | . 27 Device 3 | . 3 Storage 14 | . 14 Processor 10 | . 10 Energy Gun 7 | . 7 Energy Cannon 8 | . 8 Ballistic Gun 12 | . 12 Naked Turns . | . . Heaviest Build 12 | 11 12 Greatest Support 46 | 40 46 Greatest Overweight (x) 3 | . 3 Average Overweight (x) . | . . Largest Inventory Capacity 6 | 6 6 Average Capacity 5 | 5 6 Most Carried 6 | 2 6 Average Carried 5 | 1 5 Final Capacity 6 | 6 6 Final Carried 5 | 2 5 Class Distribution -------------------- 100% | Mutant Dominant Class ---------------- Mutant | -10/Materials Resources | -11 -10 ----------- Run | Scr Mat Matter Collected 429 | 231 198 Remotely . | . . Salvage Created 215 | . 215 Parts 21 | . 21 Haulers Intercepted . | . . Recyclers Shooed . | . . Parts Field Recycled . | . . Retrieved Matter . | . . Parts Self-Destructed . | . . Prevented . | . . Kills | -11 -10 ------- Run | Scr Mat Combat Hostiles Destroyed 6 | . 6 Guns 1 | . 1 Cannons 5 | . 5 Classes Destroyed 2 | . 2 Swarmer 3 | . 3 Abomination 3 | . 3 Best Kill Streak 3 | . 3 Combat Bots Only 3 | . 3 Max Kills in Single Turn 1 | . 1 Gunslinging . | . . Exploded . | . . Melee . | . . Uniques/NPCs Destroyed . | . . Combat | -11 -10 -------- Run | Scr Mat Damage Taken 1196 | . 1196 Core 290 | . 290 Absorbed by Shields . | . . Core Remaining (%) 100 | 100 . Volleys Fired 39 | . 39 Largest 2 | . 2 Hottest 80 | . 80 Shots Fired 76 | . 76 Gun 48 | . 48 Cannon 28 | . 28 Launcher . | . . Special . | . . Kinetic 37 | . 37 Thermal 39 | . 39 Explosive . | . . Electromagnetic . | . . Robot Hit Streak 8 | . 8 Robot Miss Streak 4 | . 4 Penetration Max . | . . Secondary Targets . | . . Shots Hit Robots 49 | . 49 Core Hits 17 | . 17 Critical Hits 1 | . 1 Critical Kills . | . . Critical Parts Destroyed 1 | . 1 Melee Attacks . | . . Impact . | . . Slashing . | . . Piercing . | . . Sneak Attacks . | . . Combat Hostiles . | . . Follow-up Attacks . | . . Damage Inflicted 738 | . 738 Guns 287 | . 287 Cannons 451 | . 451 Explosions . | . . Melee . | . . Ramming . | . . Kinetic 193 | . 193 Thermal 545 | . 545 Explosive . | . . Electromagnetic . | . . Impact . | . . Slashing . | . . Piercing . | . . Highest Corruption . | . . Average Corruption . | . . Corruption Purged . | . . Overload Shots . | . . Overflow Damage 16 | . 16 Projectiles 16 | . 16 Explosions . | . . Melee . | . . Knockbacks . | . . Impact . | . . Kinetic . | . . Secondary . | . . Self-Inflicted Damage . | . . Shots . | . . Rammed . | . . Targets Rammed . | . . Kicked . | . . Crushed . | . . Highest Temperature 628 | . 628 Average Temperature 173 | . 173 Received Heat Transfer 327 | . 327 Effects 14 | . 14 Shutdowns 4 | . 4 Energy Bleed 3 | . 3 Interference 2 | . 2 Matter Decay 1 | . 1 Short Circuit 2 | . 2 Damage (minor) 1 | . 1 Damage (core) 1 | . 1 Siege Activations . | . . Robots Corrupted . | . . Combat Hostiles . | . . Parts Fried 1 | . 1 Impact Corruptions . | . . Robots Melted . | . . Combat Hostiles . | . . Parts Melted 1 | . 1 Heat Transferred 392 | . 392 Parts Sabotaged . | . . Parts Stolen . | . . Parts Stripped . | . . Power Chain Reactions . | . . Missiles Intercepted . | . . Alert | -11 -10 ------- Run | Scr Mat Peak Influence 70 | . 70 Average Influence 6 | . 6 Maximum Alert Level . | . . Low Security (%) 100 | . . Level 1 . | . . Level 2 . | . . Level 3 . | . . Level 4 . | . . Level 5 . | . . High Security . | . . Max Security . | . . Squads Dispatched 5 | . 5 Investigation 1 | . 1 Extermination . | . . Reinforcement 1 | . 1 Assault 3 | . 3 Garrison . | . . Intercept . | . . Construction Impeded . | . . Haulers Reinforced . | . . Stealth | -11 -10 --------- Run | Scr Mat Distress Signals 2 | . 2 Communications Jammed . | . . Distress Signals . | . . Times Spotted 9 | . 9 Peak Tracking Total 4 | . 4 Tactical Retreats 1 | . 1 Traps | -11 -10 ------- Run | Scr Mat Traps Triggered . | . . Indirectly . | . . Trap Hack Attempts . | . . Triggered . | . . Disarmed . | . . Reprogrammed . | . . Reused . | . . Traps Extracted . | . . Installed . | . . Triggered . | . . Machines | -11 -10 ---------- Run | Scr Mat Machines Disabled . | . . Max in Single Turn . | . . Machines Sabotaged . | . . Garrisons Compromised . | . . Overloaded Fab Kills . | . . Fab Network Shutdowns . | . . Hacking | -11 -10 --------- Run | Scr Mat Machines Accessed 3 | . 3 Terminals 3 | . 3 Fabricators . | . . Repair Stations . | . . Recycling Units . | . . Scanalyzers . | . . Garrison Access . | . . Total Hacks 8 | . 8 Successful 5 | . 5 Failed 3 | . 3 Catastrophic 1 | . 1 Database Lockouts . | . . Manual 8 | . 8 Terminals 8 | . 8 Fabricators . | . . Repair Stations . | . . Recycling Units . | . . Scanalyzers . | . . Garrison Access . | . . Terminal Hacks 1 | . 1 Part Schematic 1 | . 1 Fabricator Hacks . | . . Repair Station Hacks . | . . Recycling Unit Hacks . | . . Scanalyzer . | . . Garrison Access Hacks . | . . Unauthorized Hacks 10 | . 10 Terminals 4 | . 4 Track 3 | . 3 Botnet 1 | . 1 Fabricators . | . . Repair Stations . | . . Recycling Units . | . . Scanalyzers . | . . Garrison Access . | . . Data Cores Recovered . | . . Used . | . . Hacking Detections 2 | . 2 Full Trace Events . | . . Feedback Events . | . . Feedback Blocked . | . . Robot Schematics Acquired . | . . Robots Built . | . . Matter . | . . Time . | . . Total Robot Build Rating . | . . Part Schematics Acquired 1 | . 1 Parts Built . | . . Matter . | . . Time . | . . Total Part Build Rating . | . . Parts Repaired . | . . Time . | . . Parts Recycled . | . . Recycled Matter . | . . Retrieved Matter . | . . Retrieved Components . | . . Parts Scanalyzed . | . . Part Schematics Acquired . | . . Parts Damaged . | . . Bothacking | -11 -10 ------------ Run | Scr Mat Used RIF Installer . | . . Robots Hacked . | . . Non-combat . | . . Combat . | . . Robot Hacks Applied . | . . Relay Couplers Released . | . . Robots Rewired . | . . Allies Hacked . | . . Hacks Repelled . | . . Allies | -11 -10 -------- Run | Scr Mat Total Allies . | . . Largest Group . | . . Highest-Rated Group . | . . Highest-Rated Ally . | . . Total Orders . | . . Ally Attacks . | . . Total Damage . | . . Kills . | . . Allies Corrupted . | . . Allies Melted . | . . Intel | -11 -10 ------- Run | Scr Mat Robot Analysis Total . | . . Derelict Logs Recovered . | . . Drone Launches . | . . Drone Recoveries . | . . Exploration | -11 -10 ------------- Run | Scr Mat Turns Passed 1030 | 59 971 Spaces Moved 534 | 32 502 Core 4 | 3 1 Treads 529 | 28 501 Legs . | . . Wheels 1 | 1 . Hover . | . . Flight . | . . Fastest Speed 50 | 50 160 Average Speed 159 | 147 160 Slowest Speed 200 | 160 200 Overloaded Moves . | . . Propulsion Burnouts . | . . Robots Hopped . | . . Cave-ins Triggered . | . . Exploration Rate (%) 46 | 3 89 Regions Visited 1 Branch Regions . Pre-discovered Areas . | . . Known Exits Taken . | . . Unknown Exits Taken 1 | 1 . Scrap Searched . | . . Spaces Dug . | . . Terrain Destroyed . | . . Melee . | . . Projectile . | . . AOE . | . . Actions | -11 -10 --------- Run | Scr Mat Total 643 | 41 602 Wait 25 | . 25 Move 533 | 31 502 Hop . | . . Pick Up 12 | 2 10 Fast Attach 15 | 7 8 Attach 3 | . 3 Detach . | . . Swap 4 | . 4 Drop 12 | 1 11 Fire 39 | . 39 Melee . | . . Ram . | . . Kick . | . . Crush . | . . Escape Stasis . | . . Rewire . | . . Trap . | . . Miscellaneous . | . . Route ------- -11/Scrapyard -10/Materials (discovered 2 exits: *Mat x2) History --------- Turn | Location | Event 6 | -11/Scrapyard | Discovered new exit (range 15) 60 | -11/Scrapyard | Entered Materials 60 | -10/Materials | Discovered new exit (range 9) 304 | -10/Materials | Build established: Mutant 336 | -10/Materials | Identified exit to Mines 527 | -10/Materials | Discovered new exit (range 4) 532 | -10/Materials | Identified exit to Materials 826 | -10/Materials | Discovered exit to Materials (range 16) 1006 | -10/Materials | Discovered exit to Mines (range 10) 1022 | -10/Materials | Core integrity fell below 50% 1027 | -10/Materials | Core integrity fell below 20% 1032 | -10/Materials | Core destroyed Last Messages --------------- 01015_ Lesser Abomination spits out Aluminum Leg. 01015_ Lesser Abomination feeds off Hungry Anomaly, taking Aluminum Leg. 01015_ Hungry Anomaly eats Aluminum Leg. 01016_ Disintegrating Anomaly destroyed. 01016_ Lgt. Ion Engine destroyed. 01019_ Lesser Abomination spits out Aluminum Leg. 01019_ Lesser Abomination feeds off Hungry Anomaly, taking Aluminum Leg. 01019_ Hungry Anomaly eats Aluminum Leg. 01021_ 43 Matter blinks away. 01023_ Overheating: Energy bleed (-12). 01023_ Destroyed Ion Engine. 01024_ Overheating: Short circuit. 01024_ Lgt. Assault Rifle permanently disabled. 01025_ Overheating: Matter decay (-53). 01026_ Overheating: System interference. 01026_ Imp. Signal Interpreter temporarily disabled. 01026_ Beam Cannon temporarily disabled. 01028_ Dropped Lgt. Assault Rifle. 01028_ Beam Cannon destroyed. 01032_ Overheating: Core damaged (-45). Map ----- +----------------------------------------------------+ | "%" #?##"""""" % * | | " ""########## % % | | " "" # % % | | "%"" # %"""""################"""""""""""" | | " "" # %" # # #" " " | | " "" % %+ " # ############# """##### | | "%"" " %""######???????# " R"#???## | | " "" # % "" #???????#### """#???## | | " "" # "" #????????? " #???# | | " "" " "" #????????? " """ #???## | | "%"""""""""""" "" #????????? " """ #???## | | = " #??????????" """ #???# | | % % "%% " #??##????" ? #???## | | % % % "" "##?""#????"""""?"""#????# | | ###+######+##""" """""""# ? ?###"""""#""####### | | " # % # " " # % % ?+ " | | " "" # """####"""# > ? ##?# """# | | # Y" # """# % % #% % % ?? #??# """# | | " "" # ?""?# % %# %## ???# #??# s"""" | | "% #??? ?# %# %## " " ???# #??# # | | " ??#??????# %+% ##"" "????#% #??# """# | | " ?????????# #% # # ###??# ##?# """" | | ? ?####### # # ##?# " ## """# | | ? ## ###""#######% ## "% " " " | | ?###"""""# % % % A% # " """"""""+"""" | | ## # %% % % n @ #""" % % n | | #"% "% """ """ A% """ | | #" % " ^""" """ ##;;% " | | "" % "% """% """%= ###""""";;;;########## | | " ##%%""" """%%## # n ####????# | | " % #"% %%% ## % # %%%% ######### | | =" % "" %## # + n | | " "" #"T"##% ## # k###### ## | | " % %" ##### % # # """ """ #????# ## | | " %%"""""##### # # """ """ #????#+## | | "% % " # + % # """ """ #????# | | ="!"""""""% """ # # # % #????# | | %" " """ # # ######+####????# "T | | %"! ###### %""" ## ## ##?????????????# "" | | !" #?????# ## ## #??????????????# | | %" #?????# ## ## """ #??????????????#### | | " #?????# "T" ## + #?????????????????? | | " #?????# """ ## #######+#?????????????????? | | "##?????# ### ##?????????????????????????? | | "#??????##########?#n#????????#?????????????????? | | "#?????????????????# #?###### ###???????????????? | | "#?????????????????# #?# " #???????????????? | | ##?????????????????# ###""" #???????????????? | | #??????????????????# #???????????????? | | #??????????????????#####""" #???????????????? | +----------------------------------------------------+ Best States ------------- Heat Dissipation 25 Energy Generation 10 Energy Capacity 125 Matter Stores 300 Matter Capacity 300 Sight Range 16 Terrain Scan Density 10 Evasion (%) 40 Recoil Reduction 2 Item Schematics ----------------- Hcp. Storage Unit | -10/Materials | Hacked Robot Schematics ------------------ None Fabricated ------------ Nothing Alien Tech Used ----------------- None Achievements -------------- None Challenges ------------ None Game ------ Seed SupersonicGammaPrototype Manual? 0 Play Time 00:07:00 Cumulative 553.2 hours Start 2019.10.31 @ 17:43:34 End 2019.10.31 @ 17:50:29 Sessions 1 Manual Loads 0 Difficulty Rogue Special Mode Halloween2019/Abominations Game No. 496 Rogue 416 Adventurer 40 Explorer 0 Win Type - Total 34 Types 23/0/11/0/0/0/0 Lore% 84 Gallery% 89 Achievement% 64 Wizard Run 0 Options --------- ASCII 0 Keyboard 0 Movement Numpad Keybinds 0 Fullscreen 0 Font 16/Terminus Map View 76x50 Tactical HUD 1 Map Filters NONE Filters NONE Steam 1 RUN: 97295446-de66-42b5-8dca-4f0a6e336663